Workbook

Sheet MIPI TX
C1: MIPI Transmitter Utility
B2: Enter the video information | F2: Input fields
B3: Data type | C3: RAW10
B4: # of data pixels per line | C4: 1920
B5: # of data lines per frame | C5: 1080
B6: # of blanking lines per frame | C6: 3 | E6: =C6*C42 -> 24.6
B7: # of frames per second (Hz) | C7: 60
B8: Horizontal blanking per line (us) | C8: 5 | D8: =IF(OR(C3='Data Type'!B15,C3='Data Type'!B16),"Enter the value of the even lines. You should apply the same line rate to odd and even lines.","") -> 
B9: Pixel clock frequency (MHz) | C9: 100
B11: Enter the MIPI interface details
B12: Data rate (Mbps) | C12: 1500
B13: # of lanes | C13: 4
B14: Frame Mode | C14: General | I14: Hidden to customers; always General
B15: Clock mode | C15: Continuous
B17: Enter the TX timing parameter settings
B18: TxClkEsc Frequency (MHz) | C18: 20 | I18: Hidden to customers; always 20
B19: THS-PREPARE (ns) | C19: 66
B20: THS-ZERO (ns) | C20: 150
B21: THS-TRAIL (ns) | C21: 970
B22: TCLK-POST (ns) | C22: 249
B23: TCLK-TRAIL (ns) | C23: 64
B24: TCLK-PREPARE (ns) | C24: 56
B25: TCLK-ZERO (ns) | C25: 320
B26: TCLK-PRE (ns) | C26: 300
B28: Use default values | C28: TRUE | I28: Hidden to customers
I29: Hidden to customers
B30: Pixel data (based on the data type) | I30: Hidden to customers
B31: YUV 420? | C31: =OR(C3='Data Type'!B15,C3='Data Type'!B16) -> FALSE | I31: Hidden to customers
B32: YUV? | C32: =OR(C3='Data Type'!B15,C3='Data Type'!B16,C3='Data Type'!B17,C3='Data Type'!B18,C3='Data Type'!B19) -> FALSE | I32: Hidden to customers
B33: Maximum # of pixels per line | C33: =VLOOKUP($C$3,'Data Type'!B3:I19,8) -> 4608 | I33: Hidden to customers
B34: =IF(C31,"# of pixels per pixel clock (even lines)","# of pixels per pixel clock") -> # of pixels per pixel clock | C34: =VLOOKUP($C$3,'Data Type'!B3:F19,4) -> 6 | D34: =IF(C32,"(on average)","") ->  | I34: Hidden to customers
B35: =IF(C31,"# of bits per pixel (even lines)","# of bits per pixel") -> # of bits per pixel | C35: =VLOOKUP($C$3,'Data Type'!B3:F19,2) -> 10 | D35: =IF(C32,"(on average)","") ->  | I35: Hidden to customers
B36: =IF(C31,"# of pixels per pixel clock (odd lines)","") ->  | C36: =VLOOKUP($C$3,'Data Type'!B3:F19,5) ->  | I36: Hidden to customers
B37: =IF(C31,"# of bits per pixel (odd lines)","") ->  | C37: =VLOOKUP($C$3,'Data Type'!B3:F19,3) ->  | I37: Hidden to customers
B38: # of bits per line | C38: =C4*C35 -> 19200 | D38: =IF(C31,"(even lines)","") ->  | I38: Hidden to customers
B39: BW overhead spec | C39: 0.1 | I39: Hidden to customers
B40: Minimum Line Rate (kHz) | C40: =(C5+C6)*C7/1000 -> 64.98 | I40: Hidden to customers
B41: Line rate margin (kHz) | C41: =1000/C42-C40 -> 56.97121951 | I41: Hidden to customers
B42: Line Period (us) | C42: =C4/C9/C34+C8 -> 8.2 | E42: ='W Dummy'!I23 -> 5486.8 | I42: Hidden to customers
B43: Video Bandwidth (Mbps) | C43: =C4*C35/C42 -> 2341.463415 | I43: Hidden to customers
I44: Hidden to customers
B45: Minimum Serial Bandwidth (Mbps) | C45: =C43*(1+C39) -> 2575.609756 | I45: Hidden to customers
B46: MIPI Tx UI (ns) | C46: =1000/C12 -> 0.6666666667 | I46: Hidden to customers
B47: Step size (ns) | C47: =VLOOKUP(C12,step!$B$5:$F$369,5) -> 8 | I47: Hidden to customers
B48: TxClkEsc Period (ns) | C48: =1000/C18 -> 50 | I48: Hidden to customers
B49: TLPX (ns) | C49: 50 | I49: Hidden to customers
B50: THS-EXIT (ns) | C50: 250 | I50: Hidden to customers
B51: THS-EXIT-clock (ns) | C51: 800 | I51: Hidden to customers
B52: Data Packet overhead (ns) | C52: =C49+C19+C20+C21 -> 1236 | I52: Hidden to customers
B53: LS/LE packets overhead (ns) | C53: =IF(C14="Accurate",2*C52+2*C50,0) -> 0 | I53: Hidden to customers
B54: LP Clock overhead (ns) | C54: =IF(C15="Continuous",C50,C49+C22+C23+C51+C24+C25+C26) -> 250 | I54: Hidden to customers
B55: TOTAL overhead (us) | C55: =(C52+C53+C54)/1000 -> 1.486 | I55: Hidden to customers
B56: Time to transmit one even line (us) | C56: =C35*C4/C12/C13 + C55 -> 4.686 | I56: Hidden to customers
B57: Time to transmit one odd line (us) | C57: =IF(C31,C37*C4/C12/C13+C55,"n/a") -> n/a | I57: Hidden to customers
B58: Effective Serial Bandwidth (Mbps) | C58: =C35*C4/C56 -> 4097.31114 | I58: Hidden to customers
B59: Bandwidth margin (Mbps) | C59: =C58-C45 -> 1521.701383 | I59: Hidden to customers
I60: Hidden to customers
A61: Horizontal Blanking | B61: Minimum hsync pulse (hsp) (us) | C61: =IF(C14="General",2/C9,IF(C15="Continuous",MAX(C52,80*C46+6*C48+300)/1000,MAX(C52,160*C46+12*C48+700)/1000)) -> 0.02 | I61: Hidden to customers
B62: Maximum hsync pulse (hsp) (us) | C62: =IF(AND(C14="Accurate",C15="Non-continuous"),1.4*(160*C46+12*C48+700)/1000,"n/a") -> n/a | I62: Hidden to customers
B63: Minimum horiz. back porch (hbp) (us) | C63: =2/C9 -> 0.02 | D63: =IF(OR(C3='Data Type'!B15,C3='Data Type'!B16),"To achieve the same line rate on odd and even lines, please extend the back porch of the odd lines while keeping the front porch constant.","") ->  | I63: Hidden to customers
B64: Maximum horiz. back porch (hbp) (us) | C64: =IF(AND(C14="Accurate",C15="Non-continuous"),(160*C46+12*C48+700)/1000,"n/a") -> n/a | I64: Hidden to customers
B65: Minimum horiz. front porch (hfp) (us) | C65: =2/C9 -> 0.02 | I65: Hidden to customers
I66: Hidden to customers
I67: Hidden to customers
B68: Blanking margin (us) | C68: =C8-C61-C63-C65 -> 4.94 | I68: Hidden to customers
B69: Results
B70: Maximum line buffer test | C70: =IF(C4>C33,"Action Required","PASS") -> PASS | D70: =IF(C70<>"PASS","Try a) decreasing the number of pixels per line, or b) selecting a different data type.","") -> 
B71: Minimum horizontal blanking test | C71: =IF(C68<0,"Action Required","PASS") -> PASS | D71: =IF(C71<>"PASS","Try a) increasing horizontal blanking, or b) increasing pixel clock frequency.","") -> 
B72: Minimum line rate test | C72: =IF(C41<0,"Action Required","PASS") -> PASS | D72: =IF(C72<>"PASS","Try decreasing horizontal blanking.","") -> 
B73: Minimum bandwidth test | C73: =IF(C59<0,"Action Required","PASS") -> PASS | D73: =IF(C73<>"PASS","Try a) using Continuous Clock Mode, or b) increasing horizontal blanking, or c) increasing data rate, or d) increasing number of data lanes.","") -> 
A75: © Efinix, Inc.
B81: default | C81: TCLK-POST (ns) | D81: UI | E81: Step | F81: txclkesc | G81: Bit setting | I81: Hidden to customers
C82: =ROUNDDOWN(D82*$C$46+E82*$C$47+F82*$C$48,0) -> 113 | D82: 86 | E82: 7 | F82: 0 | G82: 011 | I82: Hidden to customers
C83: =ROUNDDOWN(D83*$C$46+E83*$C$47+F83*$C$48,0) -> 121 | D83: 86 | E83: 8 | F83: 0 | G83: 001 | I83: Hidden to customers
C84: 129 | D84: 86 | E84: 9 | F84: 0 | G84: 000 | I84: Hidden to customers
C85: 137 | D85: 86 | E85: 10 | F85: 0 | G85: 010 | I85: Hidden to customers
C86: 145 | D86: 86 | E86: 11 | F86: 0 | G86: 100 | I86: Hidden to customers
C87: 169 | D87: 86 | E87: 14 | F87: 0 | G87: 101 | I87: Hidden to customers
C88: 209 | D88: 86 | E88: 19 | F88: 0 | G88: 110 | I88: Hidden to customers
B89: TRUE | C89: 249 | D89: 86 | E89: 24 | F89: 0 | G89: 111 | I89: Hidden to customers
I90: Hidden to customers
B91: default | C91: TCLK-TRAIL (ns) | D91: UI | E91: Step | F91: txclkesc | G91: Bit setting | I91: Hidden to customers
C92: =ROUNDDOWN(D92*$C$46+E92*$C$47+F92*$C$48,0) -> 16 | D92: 0 | E92: 2 | F92: 0 | G92: 0001 | I92: Hidden to customers
C93: 24 | D93: 0 | E93: 3 | F93: 0 | G93: 0010 | I93: Hidden to customers
C94: 32 | D94: 0 | E94: 4 | F94: 0 | G94: 0011 | I94: Hidden to customers
C95: 40 | D95: 0 | E95: 5 | F95: 0 | G95: 0100 | I95: Hidden to customers
C96: 48 | D96: 0 | E96: 6 | F96: 0 | G96: 0101 | I96: Hidden to customers
C97: 56 | D97: 0 | E97: 7 | F97: 0 | G97: 0110 | I97: Hidden to customers
B98: TRUE | C98: 64 | D98: 0 | E98: 8 | F98: 0 | G98: 0000 | I98: Hidden to customers
C99: 72 | D99: 0 | E99: 9 | F99: 0 | G99: 1000 | I99: Hidden to customers
C100: 80 | D100: 0 | E100: 10 | F100: 0 | G100: 1001 | I100: Hidden to customers
C101: 88 | D101: 0 | E101: 11 | F101: 0 | G101: 1010 | I101: Hidden to customers
C102: 96 | D102: 0 | E102: 12 | F102: 0 | G102: 1011 | I102: Hidden to customers
C103: 104 | D103: 0 | E103: 13 | F103: 0 | G103: 1100 | I103: Hidden to customers
C104: 112 | D104: 0 | E104: 14 | F104: 0 | G104: 1101 | I104: Hidden to customers
I105: Hidden to customers
B106: default | C106: TCLK-PREPARE (ns) | D106: UI | E106: Step | F106: txclkesc | G106: Bit setting | I106: Hidden to customers
C107: =ROUNDDOWN(D107*$C$46+E107*$C$47+F107*$C$48,0) -> 48 | D107: 0 | E107: 6 | F107: 0 | G107: 01 | I107: Hidden to customers
B108: TRUE | C108: 56 | D108: 0 | E108: 7 | F108: 0 | G108: 00 | I108: Hidden to customers
C109: 64 | D109: 0 | E109: 8 | F109: 0 | G109: 10 | I109: Hidden to customers
C110: 72 | D110: 0 | E110: 9 | F110: 0 | G110: 11 | I110: Hidden to customers
I111: Hidden to customers
B112: default | C112: TCLK-ZERO (ns) | D112: UI | E112: Step | F112: txclkesc | G112: Bit setting | I112: Hidden to customers
C113: =ROUNDDOWN(D113*$C$46+E113*$C$47+F113*$C$48,0) -> 304 | D113: 0 | E113: 38 | F113: 0 | G113: 011 | I113: Hidden to customers
C114: 312 | D114: 0 | E114: 39 | F114: 0 | G114: 001 | I114: Hidden to customers
B115: TRUE | C115: 320 | D115: 0 | E115: 40 | F115: 0 | G115: 000 | I115: Hidden to customers
C116: 328 | D116: 0 | E116: 41 | F116: 0 | G116: 010 | I116: Hidden to customers
C117: 336 | D117: 0 | E117: 42 | F117: 0 | G117: 100 | I117: Hidden to customers
C118: 360 | D118: 0 | E118: 45 | F118: 0 | G118: 101 | I118: Hidden to customers
C119: 400 | D119: 0 | E119: 50 | F119: 0 | G119: 110 | I119: Hidden to customers
C120: 440 | D120: 0 | E120: 55 | F120: 0 | G120: 111 | I120: Hidden to customers
I121: Hidden to customers
B122: default | C122: TCLK-PRE (ns) | D122: UI | E122: Step | F122: txclkesc | G122: Bit setting | I122: Hidden to customers
C123: =ROUNDDOWN(D123*$C$46+E123*$C$47+F123*$C$48,0) -> 250 | D123: 0 | E123: 0 | F123: 5 | G123: 01 | I123: Hidden to customers
B124: TRUE | C124: 300 | D124: 0 | E124: 0 | F124: 6 | G124: 00 | I124: Hidden to customers
C125: 400 | D125: 0 | E125: 0 | F125: 8 | G125: 10 | I125: Hidden to customers
C126: 550 | D126: 0 | E126: 0 | F126: 11 | G126: 11 | I126: Hidden to customers
I127: Hidden to customers
B128: default | C128: THS-PREPARE (ns) | D128: UI | E128: Step | F128: txclkesc | G128: Bit setting | I128: Hidden to customers
C129: =ROUNDDOWN(D129*$C$46+E129*$C$47+F129*$C$48,0) -> 58 | D129: 4 | E129: 7 | F129: 0 | G129: 10 | I129: Hidden to customers
B130: TRUE | C130: 66 | D130: 4 | E130: 8 | F130: 0 | G130: 00 | I130: Hidden to customers
C131: 74 | D131: 4 | E131: 9 | F131: 0 | G131: 01 | I131: Hidden to customers
C132: 90 | D132: 4 | E132: 11 | F132: 0 | G132: 11 | I132: Hidden to customers
I133: Hidden to customers
B134: default | C134: THS-ZERO (ns) | D134: UI | E134: Step | F134: txclkesc | G134: Bit setting | I134: Hidden to customers
C135: =ROUNDDOWN(D135*$C$46+E135*$C$47+F135*$C$48,0) -> 142 | D135: 45 | E135: 14 | F135: 0 | G135: 01 | I135: Hidden to customers
B136: TRUE | C136: 150 | D136: 45 | E136: 15 | F136: 0 | G136: 00 | I136: Hidden to customers
C137: 190 | D137: 45 | E137: 20 | F137: 0 | G137: 10 | I137: Hidden to customers
C138: 230 | D138: 45 | E138: 25 | F138: 0 | G138: 11 | I138: Hidden to customers
I139: Hidden to customers
B140: default | C140: THS-TRAIL (ns) | D140: UI | E140: Step | F140: txclkesc | G140: Bit setting | I140: Hidden to customers
C141: =ROUNDDOWN(D141*$C$46+E141*$C$47+F141*$C$48,0) -> 34 | D141: 4 | E141: 4 | F141: 0 | G141: 00100 | I141: Hidden to customers
C142: 42 | D142: 4 | E142: 5 | F142: 0 | G142: 00011 | I142: Hidden to customers
C143: 50 | D143: 4 | E143: 6 | F143: 0 | G143: 00010 | I143: Hidden to customers
C144: 58 | D144: 4 | E144: 7 | F144: 0 | G144: 00001 | I144: Hidden to customers
C145: 66 | D145: 4 | E145: 8 | F145: 0 | G145: 00000 | I145: Hidden to customers
C146: 74 | D146: 4 | E146: 9 | F146: 0 | G146: 10001 | I146: Hidden to customers
C147: 82 | D147: 4 | E147: 10 | F147: 0 | G147: 10010 | I147: Hidden to customers
C148: 90 | D148: 4 | E148: 11 | F148: 0 | G148: 10011 | I148: Hidden to customers
C149: 98 | D149: 4 | E149: 12 | F149: 0 | G149: 10100 | I149: Hidden to customers
C150: 106 | D150: 4 | E150: 13 | F150: 0 | G150: 10101 | I150: Hidden to customers
C151: 114 | D151: 4 | E151: 14 | F151: 0 | G151: 10110 | I151: Hidden to customers
C152: 122 | D152: 4 | E152: 15 | F152: 0 | G152: 10111 | I152: Hidden to customers
C153: 130 | D153: 4 | E153: 16 | F153: 0 | G153: 11000 | I153: Hidden to customers
C154: 138 | D154: 4 | E154: 17 | F154: 0 | G154: 11001 | I154: Hidden to customers
C155: 146 | D155: 4 | E155: 18 | F155: 0 | G155: 11010 | I155: Hidden to customers
C156: 154 | D156: 4 | E156: 19 | F156: 0 | G156: 11011 | I156: Hidden to customers
C157: 162 | D157: 4 | E157: 20 | F157: 0 | G157: 11100 | I157: Hidden to customers
C158: 170 | D158: 4 | E158: 21 | F158: 0 | G158: 11101 | I158: Hidden to customers
C159: 178 | D159: 4 | E159: 22 | F159: 0 | G159: 11110 | I159: Hidden to customers
C160: 186 | D160: 4 | E160: 23 | F160: 0 | G160: 11111 | I160: Hidden to customers
B161: TRUE | C161: 970 | D161: 4 | E161: 121 | F161: 0 | G161: 01111 | I161: Hidden to customers
B200: =step!B5 -> 80 | I200: Hidden to customers
B201: =step!B6 -> 81.25 | I201: Hidden to customers
B202: =step!B7 -> 82.5 | I202: Hidden to customers
B203: =step!B8 -> 83.75 | I203: Hidden to customers
B204: =step!B9 -> 85 | I204: Hidden to customers
B205: =step!B10 -> 86.25 | I205: Hidden to customers
B206: =step!B11 -> 87.5 | I206: Hidden to customers
B207: =step!B12 -> 88.75 | I207: Hidden to customers
B208: =step!B13 -> 90 | I208: Hidden to customers
B209: =step!B14 -> 91.25 | I209: Hidden to customers
B210: =step!B15 -> 92.5 | I210: Hidden to customers
B211: =step!B16 -> 93.75 | I211: Hidden to customers
B212: =step!B17 -> 95 | I212: Hidden to customers
B213: =step!B18 -> 96.25 | I213: Hidden to customers
B214: =step!B19 -> 97.5 | I214: Hidden to customers
B215: =step!B20 -> 98.75 | I215: Hidden to customers
B216: =step!B21 -> 100 | I216: Hidden to customers
B217: =step!B22 -> 101.25 | I217: Hidden to customers
B218: =step!B23 -> 102.5 | I218: Hidden to customers
B219: =step!B24 -> 103.75 | I219: Hidden to customers
B220: =step!B25 -> 105 | I220: Hidden to customers
B221: =step!B26 -> 106.25 | I221: Hidden to customers
B222: =step!B27 -> 107.5 | I222: Hidden to customers
B223: =step!B28 -> 108.75 | I223: Hidden to customers
B224: =step!B29 -> 110 | I224: Hidden to customers
B225: =step!B30 -> 111.25 | I225: Hidden to customers
B226: =step!B31 -> 112.5 | I226: Hidden to customers
B227: =step!B32 -> 113.75 | I227: Hidden to customers
B228: =step!B33 -> 115 | I228: Hidden to customers
B229: =step!B34 -> 116.25 | I229: Hidden to customers
B230: =step!B35 -> 117.5 | I230: Hidden to customers
B231: =step!B36 -> 118.75 | I231: Hidden to customers
B232: =step!B37 -> 120 | I232: Hidden to customers
B233: =step!B38 -> 121.25 | I233: Hidden to customers
B234: =step!B39 -> 122.5 | I234: Hidden to customers
B235: =step!B40 -> 123.75 | I235: Hidden to customers
B236: =step!B41 -> 125 | I236: Hidden to customers
B237: =step!B42 -> 126.25 | I237: Hidden to customers
B238: =step!B43 -> 127.5 | I238: Hidden to customers
B239: =step!B44 -> 128.75 | I239: Hidden to customers
B240: =step!B45 -> 130 | I240: Hidden to customers
B241: =step!B46 -> 131.25 | I241: Hidden to customers
B242: =step!B47 -> 132.5 | I242: Hidden to customers
B243: =step!B48 -> 133.75 | I243: Hidden to customers
B244: =step!B49 -> 135 | I244: Hidden to customers
B245: =step!B50 -> 136.25 | I245: Hidden to customers
B246: =step!B51 -> 137.5 | I246: Hidden to customers
B247: =step!B52 -> 138.75 | I247: Hidden to customers
... 317 more rows

Sheet MIPI RX
C1: MIPI Receiver Utility
B2: Enter the video information | F2: Input fields
B3: Data type | C3: RAW10
B4: # of data pixels per line | C4: 1920
B5: Pixel clock frequency (MHz) | C5: 60
B7: Enter the MIPI interface details
B8: Data rate (Mbps) | C8: 1500
B9: # of data lanes | C9: 4
B10: Clock mode | C10: Continuous
B11: Line rate (kHz) | C11: 100 | D11: =IF(OR(C3='Data Type'!B15,C3='Data Type'!B16),"Enter line-rate of even lines","") -> 
B12: Camera's THS-TRAIL delay (ns) | C12: 70
B13: Camera's TCLK-POST delay (ns) | C13: 300 | D13: For Non-continuous Clock Mode only
B14: Camera's THS-EXIT delay (ns) | C14: 100
B16: YUV 420? | C16: =OR(C3='Data Type'!B15,C3='Data Type'!B16) -> FALSE | I16: Hidden to customers
B17: YUV? | C17: =OR(C3='Data Type'!B15,C3='Data Type'!B16,C3='Data Type'!B17,C3='Data Type'!B18,C3='Data Type'!B19) -> FALSE | I17: Hidden to customers
B18: Maximum # of pixels per line | C18: =VLOOKUP($C$3,'Data Type'!B3:I19,8) -> 4608 | I18: Hidden to customers
B19: =IF(C16,"# of pixels per pixel clock (even lines)","# of pixels per pixel clock") -> # of pixels per pixel clock | C19: =VLOOKUP($C$3,'Data Type'!B3:H19,7) -> 4 | D19: =IF(C17,"(on average)","") ->  | I19: Hidden to customers
B21: THS-TRAIL (ns) | C21: =IF(C9=1,48/C8*1000,IF(C9=2,72/C8*1000,80/C8*1000)) -> 53.33333333 | I21: Hidden to customers
B22: Minimum THS-TRAIL (ns) | C22: =MAX(C21,65) -> 65
B23: Minimum THS-TRAIL+TCLK-POST (ns) | C23: =IF(C10="Continuous","n/a",IF(C9=1,750/C8*1000,IF(C9=2,450/C8*1000,260/C8*1000))) -> n/a
B24: Minimum THS-EXIT (ns) | C24: =MAX(72/C8*1000,100) -> 100
B26: Minimum RX pixel clock frequency (MHz) | C26: =120%*C4*C11/C19/1000 -> 57.6
B28: Results
B29: Maximum line buffer test | C29: =IF(C4>C18,"Action Required","PASS") -> PASS | D29: =IF(C29<>"PASS","Try tuning the camera's register settings to a) decreasing the number of pixels per line, or b) selecting a different data type.","") -> 
B30: Minimum RX pixel clock frequency test | C30: =IF(C26>C5,"Action Required","PASS") -> PASS | D30: =IF(C30<>"PASS","Try a) increasing the pixel clock frequency, or tuning the camera's register settings to b) decreasing the number of pixels per line, or c) decreasing the line rate.","") -> 
B31: Minimum THS-EXIT test | C31: =IF(C24>C14,"Action Required","PASS") -> PASS | D31: =IF(C31<>"PASS","Try tuning the camera's register settings to a) increase THS-EXIT delay, or b) increase the data rate.","") -> 
B32: Minimum THS-TRAIL test | C32: =IF(C22>C12,"Action Required","PASS") -> PASS | D32: =IF(C32<>"PASS","Try tuning the camera's register settings to a) increase THS-TRAIL delay, or b) increase the data rate.","") -> 
B33: Minimum THS-TRAIL+TCLK-POST test | C33: =IF(C10="Non-continuous",IF(C23>C12+C13,"Action Required","PASS"),"n/a") -> n/a | D33: =IF(C33="Action Required","Try tuning the camera's register settings to a) increase THS-TRAIL delay, or a) increase TCLK-POST delay, or c) increase the data rate, or d) increase the number of data lanes, or e) use Continuous Clock Mode.","") -> 
A35: © Efinix, Inc.

Sheet DYNAMIC HRES GEN
C1: ='MIPI TX'!C41 -> 56.97121951 | E1: =MAX(I3,H3)-F1 -> 5 | F1: ='MIPI TX'!C4/'MIPI TX'!C9/'MIPI TX'!C34 -> 3.2 | G1: PHY DELAY | H1: ='MIPI TX'!C52+'MIPI TX'!C54+100 -> 1586
A2: 1500 | B2: HRES | C2: Active L | D2: Blank L | E2: FPS(Hz) | F2: P CLK(MHz) | G2: V Blank(us) | H2: Max. H Total(us) | I2: W Dummy HS Min. H Total(us) | J2: HBP | K2: HFP | L2: HS Pulse | M2: HBP | N2: HFP | O2: HS Pulse
A3: ='MIPI TX'!C3 -> RAW10 | B3: ='MIPI TX'!C4 -> 1920 | C3: ='MIPI TX'!C5 -> 1080 | D3: ='MIPI TX'!C6 -> 3 | E3: ='MIPI TX'!C7 -> 60 | F3: ='MIPI TX'!C9 -> 100 | G3: ='MIPI TX'!E6 -> 24.6 | H3: ='MIPI TX'!C42 -> 8.2 | I3: =('MIPI TX'!E42)/1000 -> 5.4868 | J3: ='W Dummy'!M49 -> 231 | K3: ='W Dummy'!N49 -> 116 | L3: ='W Dummy'!O49 -> 39 | M3: ='W Dummy'!M23 -> 165 | N3: ='W Dummy'!N23 -> 83 | O3: ='W Dummy'!O23 -> 28
A5: =A2/1000 & "GHz" -> 1.5GHz | B5: HRES | C5: Max. Active Line | D5: Blank Line | E5: FPS(Hz) | F5: P CLK(MHz) | G5: V Blank(us) | H5: Max. H Total(us) | I5: Min. H Total(us) | J5: Min. HBP | K5: Min. HFP | L5: Min. HS Pulse | M5: HBP | N5: HFP | O5: HS Pulse
A6: RAW10 | B6: 32 | C6: 1516 | D6: 3 | E6: 600 | F6: 100 | G6: 3.289 | H6: 1.096333333 | I6: 1.05512 | J6: 61 | K6: 31 | L6: 11 | M6: 60 | N6: 30 | O6: 10 | T6: =IF(('MIPI TX'!C70="PASS")*AND('MIPI TX'!C71="PASS")*AND('MIPI TX'!C72="PASS")*AND('MIPI TX'!C73="PASS"),"READY TO GEN","NOT READY") -> READY TO GEN
A7: RAW10 | B7: 64 | C7: 1426 | D7: 3 | E7: 600 | F7: 100 | G7: 3.497 | H7: 1.165666667 | I7: 1.11144 | J7: 63 | K7: 32 | L7: 11 | M7: 60 | N7: 30 | O7: 10
A8: RAW10 | B8: 1664 | C8: 420 | D8: 3 | E8: 600 | F8: 100 | G8: 11.797 | H8: 3.932333333 | I8: 3.92744 | J8: 151 | K8: 76 | L8: 26 | M8: 96 | N8: 48 | O8: 16
A9: RAW10 | B9: 1920 | C9: 376 | D9: 3 | E9: 600 | F9: 100 | G9: 13.161 | H9: 4.387 | I9: 4.378 | J9: 165 | K9: 83 | L9: 28 | M9: 102 | N9: 51 | O9: 17
P11: Tips:
P12: 1. Input Tx information for one of the resolutions you want to use into the MIPI TX worksheet until it passes. This sheet should display "READY TO GEN” when it passes.
P13: 2. Use this sheet, DYNAMIC HRES GEN, to enter all the resolutions you want to use in the HRES column.
P14: 3. Click the “Generate Porch and Max. # of Lines” button. The utility generates the required maximum and minimum porch values for each resolution.

Sheet step (hidden)
C1: Period of tx__m_txclkesc (ns) | D1: 50
A4: OUTCLKSEL | B4: Bit Rate (Mbps) | C4: OSC_CAL_CLK (MHz) | D4: UI (ns) | F4: Step (ns)
A5: 0 | B5: =IF(A5<64,(80*1*1000)+(5*1000/4)*(A5-0),(IF(A5<128,(80*2*1000)+(5*1000/2)*(A5-64),(80*4*1000)+(5*1000/1)*(A5-128))))/1000 -> 80 | C5: =IF(A5<37,B5*4/4,(IF(A5<64,B5*4/6,IF(A5<101,B5*2/4,IF(A5<128,B5*2/6,IF(A5<165,B5*1/4,IF(A5<215,B5*1/6,IF(A5<215,B5*1/6,IF(A5<265,B5*1/8,IF(A5<315,B5*1/10,B5*1/12)))))))))) -> 80 | D5: =1000/B5 -> 12.5 | E5: =B5/C5 -> 1 | F5: =1/C5*1000 -> 12.5
A6: 1 | B6: =IF(A6<64,(80*1*1000)+(5*1000/4)*(A6-0),(IF(A6<128,(80*2*1000)+(5*1000/2)*(A6-64),(80*4*1000)+(5*1000/1)*(A6-128))))/1000 -> 81.25 | C6: 81.25 | D6: =1000/B6 -> 12.30769231 | E6: =B6/C6 -> 1 | F6: 12.30769231
A7: 2 | B7: 82.5 | C7: 82.5 | D7: 12.12121212 | E7: 1 | F7: 12.12121212
A8: 3 | B8: 83.75 | C8: 83.75 | D8: 11.94029851 | E8: 1 | F8: 11.94029851
A9: 4 | B9: 85 | C9: 85 | D9: 11.76470588 | E9: 1 | F9: 11.76470588
A10: 5 | B10: 86.25 | C10: 86.25 | D10: 11.5942029 | E10: 1 | F10: 11.5942029
A11: 6 | B11: 87.5 | C11: 87.5 | D11: 11.42857143 | E11: 1 | F11: 11.42857143
A12: 7 | B12: 88.75 | C12: 88.75 | D12: 11.26760563 | E12: 1 | F12: 11.26760563
A13: 8 | B13: 90 | C13: 90 | D13: 11.11111111 | E13: 1 | F13: 11.11111111
A14: 9 | B14: 91.25 | C14: 91.25 | D14: 10.95890411 | E14: 1 | F14: 10.95890411
A15: 10 | B15: 92.5 | C15: 92.5 | D15: 10.81081081 | E15: 1 | F15: 10.81081081
A16: 11 | B16: 93.75 | C16: 93.75 | D16: 10.66666667 | E16: 1 | F16: 10.66666667
A17: 12 | B17: 95 | C17: 95 | D17: 10.52631579 | E17: 1 | F17: 10.52631579
A18: 13 | B18: 96.25 | C18: 96.25 | D18: 10.38961039 | E18: 1 | F18: 10.38961039
A19: 14 | B19: 97.5 | C19: 97.5 | D19: 10.25641026 | E19: 1 | F19: 10.25641026
A20: 15 | B20: 98.75 | C20: 98.75 | D20: 10.12658228 | E20: 1 | F20: 10.12658228
A21: 16 | B21: 100 | C21: 100 | D21: 10 | E21: 1 | F21: 10
A22: 17 | B22: 101.25 | C22: 101.25 | D22: 9.87654321 | E22: 1 | F22: 9.87654321
A23: 18 | B23: 102.5 | C23: 102.5 | D23: 9.756097561 | E23: 1 | F23: 9.756097561
A24: 19 | B24: 103.75 | C24: 103.75 | D24: 9.638554217 | E24: 1 | F24: 9.638554217
A25: 20 | B25: 105 | C25: 105 | D25: 9.523809524 | E25: 1 | F25: 9.523809524
A26: 21 | B26: 106.25 | C26: 106.25 | D26: 9.411764706 | E26: 1 | F26: 9.411764706
A27: 22 | B27: 107.5 | C27: 107.5 | D27: 9.302325581 | E27: 1 | F27: 9.302325581
A28: 23 | B28: 108.75 | C28: 108.75 | D28: 9.195402299 | E28: 1 | F28: 9.195402299
A29: 24 | B29: 110 | C29: 110 | D29: 9.090909091 | E29: 1 | F29: 9.090909091
A30: 25 | B30: 111.25 | C30: 111.25 | D30: 8.988764045 | E30: 1 | F30: 8.988764045
A31: 26 | B31: 112.5 | C31: 112.5 | D31: 8.888888889 | E31: 1 | F31: 8.888888889
A32: 27 | B32: 113.75 | C32: 113.75 | D32: 8.791208791 | E32: 1 | F32: 8.791208791
A33: 28 | B33: 115 | C33: 115 | D33: 8.695652174 | E33: 1 | F33: 8.695652174
A34: 29 | B34: 116.25 | C34: 116.25 | D34: 8.602150538 | E34: 1 | F34: 8.602150538
A35: 30 | B35: 117.5 | C35: 117.5 | D35: 8.510638298 | E35: 1 | F35: 8.510638298
A36: 31 | B36: 118.75 | C36: 118.75 | D36: 8.421052632 | E36: 1 | F36: 8.421052632
A37: 32 | B37: 120 | C37: 120 | D37: 8.333333333 | E37: 1 | F37: 8.333333333
A38: 33 | B38: 121.25 | C38: 121.25 | D38: 8.24742268 | E38: 1 | F38: 8.24742268
A39: 34 | B39: 122.5 | C39: 122.5 | D39: 8.163265306 | E39: 1 | F39: 8.163265306
A40: 35 | B40: 123.75 | C40: 123.75 | D40: 8.080808081 | E40: 1 | F40: 8.080808081
A41: 36 | B41: 125 | C41: 125 | D41: 8 | E41: 1 | F41: 8
A42: 37 | B42: 126.25 | C42: 84.16666667 | D42: 7.920792079 | E42: 1.5 | F42: 11.88118812
A43: 38 | B43: 127.5 | C43: 85 | D43: 7.843137255 | E43: 1.5 | F43: 11.76470588
A44: 39 | B44: 128.75 | C44: 85.83333333 | D44: 7.766990291 | E44: 1.5 | F44: 11.65048544
A45: 40 | B45: 130 | C45: 86.66666667 | D45: 7.692307692 | E45: 1.5 | F45: 11.53846154
A46: 41 | B46: 131.25 | C46: 87.5 | D46: 7.619047619 | E46: 1.5 | F46: 11.42857143
A47: 42 | B47: 132.5 | C47: 88.33333333 | D47: 7.547169811 | E47: 1.5 | F47: 11.32075472
A48: 43 | B48: 133.75 | C48: 89.16666667 | D48: 7.476635514 | E48: 1.5 | F48: 11.21495327
A49: 44 | B49: 135 | C49: 90 | D49: 7.407407407 | E49: 1.5 | F49: 11.11111111
A50: 45 | B50: 136.25 | C50: 90.83333333 | D50: 7.339449541 | E50: 1.5 | F50: 11.00917431
A51: 46 | B51: 137.5 | C51: 91.66666667 | D51: 7.272727273 | E51: 1.5 | F51: 10.90909091
A52: 47 | B52: 138.75 | C52: 92.5 | D52: 7.207207207 | E52: 1.5 | F52: 10.81081081
A53: 48 | B53: 140 | C53: 93.33333333 | D53: 7.142857143 | E53: 1.5 | F53: 10.71428571
A54: 49 | B54: 141.25 | C54: 94.16666667 | D54: 7.079646018 | E54: 1.5 | F54: 10.61946903
A55: 50 | B55: 142.5 | C55: 95 | D55: 7.01754386 | E55: 1.5 | F55: 10.52631579
A56: 51 | B56: 143.75 | C56: 95.83333333 | D56: 6.956521739 | E56: 1.5 | F56: 10.43478261
A57: 52 | B57: 145 | C57: 96.66666667 | D57: 6.896551724 | E57: 1.5 | F57: 10.34482759
A58: 53 | B58: 146.25 | C58: 97.5 | D58: 6.837606838 | E58: 1.5 | F58: 10.25641026
A59: 54 | B59: 147.5 | C59: 98.33333333 | D59: 6.779661017 | E59: 1.5 | F59: 10.16949153
A60: 55 | B60: 148.75 | C60: 99.16666667 | D60: 6.722689076 | E60: 1.5 | F60: 10.08403361
A61: 56 | B61: 150 | C61: 100 | D61: 6.666666667 | E61: 1.5 | F61: 10
A62: 57 | B62: 151.25 | C62: 100.8333333 | D62: 6.611570248 | E62: 1.5 | F62: 9.917355372
A63: 58 | B63: 152.5 | C63: 101.6666667 | D63: 6.557377049 | E63: 1.5 | F63: 9.836065574
A64: 59 | B64: 153.75 | C64: 102.5 | D64: 6.504065041 | E64: 1.5 | F64: 9.756097561
A65: 60 | B65: 155 | C65: 103.3333333 | D65: 6.451612903 | E65: 1.5 | F65: 9.677419355
A66: 61 | B66: 156.25 | C66: 104.1666667 | D66: 6.4 | E66: 1.5 | F66: 9.6
A67: 62 | B67: 157.5 | C67: 105 | D67: 6.349206349 | E67: 1.5 | F67: 9.523809524
A68: 63 | B68: 158.75 | C68: 105.8333333 | D68: 6.299212598 | E68: 1.5 | F68: 9.448818898
A69: 64 | B69: 160 | C69: =IF(A69<37,B69*4/4,(IF(A69<64,B69*4/6,IF(A69<101,B69*2/4,IF(A69<128,B69*2/6,IF(A69<165,B69*1/4,IF(A69<215,B69*1/6,IF(A69<215,B69*1/6,IF(A69<265,B69*1/8,IF(A69<315,B69*1/10,B69*1/12)))))))))) -> 80 | D69: 6.25 | E69: 2 | F69: =1/C69*1000 -> 12.5
A70: 65 | B70: =IF(A70<64,(80*1*1000)+(5*1000/4)*(A70-0),(IF(A70<128,(80*2*1000)+(5*1000/2)*(A70-64),(80*4*1000)+(5*1000/1)*(A70-128))))/1000 -> 162.5 | C70: 81.25 | D70: =1000/B70 -> 6.153846154 | E70: =B70/C70 -> 2 | F70: 12.30769231
A71: 66 | B71: 165 | C71: 82.5 | D71: 6.060606061 | E71: 2 | F71: 12.12121212
A72: 67 | B72: 167.5 | C72: 83.75 | D72: 5.970149254 | E72: 2 | F72: 11.94029851
A73: 68 | B73: 170 | C73: 85 | D73: 5.882352941 | E73: 2 | F73: 11.76470588
A74: 69 | B74: 172.5 | C74: 86.25 | D74: 5.797101449 | E74: 2 | F74: 11.5942029
A75: 70 | B75: 175 | C75: 87.5 | D75: 5.714285714 | E75: 2 | F75: 11.42857143
A76: 71 | B76: 177.5 | C76: 88.75 | D76: 5.633802817 | E76: 2 | F76: 11.26760563
A77: 72 | B77: 180 | C77: 90 | D77: 5.555555556 | E77: 2 | F77: 11.11111111
A78: 73 | B78: 182.5 | C78: 91.25 | D78: 5.479452055 | E78: 2 | F78: 10.95890411
A79: 74 | B79: 185 | C79: 92.5 | D79: 5.405405405 | E79: 2 | F79: 10.81081081
A80: 75 | B80: 187.5 | C80: 93.75 | D80: 5.333333333 | E80: 2 | F80: 10.66666667
A81: 76 | B81: 190 | C81: 95 | D81: 5.263157895 | E81: 2 | F81: 10.52631579
A82: 77 | B82: 192.5 | C82: 96.25 | D82: 5.194805195 | E82: 2 | F82: 10.38961039
A83: 78 | B83: 195 | C83: 97.5 | D83: 5.128205128 | E83: 2 | F83: 10.25641026
A84: 79 | B84: 197.5 | C84: 98.75 | D84: 5.063291139 | E84: 2 | F84: 10.12658228
A85: 80 | B85: 200 | C85: 100 | D85: 5 | E85: 2 | F85: 10
A86: 81 | B86: 202.5 | C86: 101.25 | D86: 4.938271605 | E86: 2 | F86: 9.87654321
A87: 82 | B87: 205 | C87: 102.5 | D87: 4.87804878 | E87: 2 | F87: 9.756097561
A88: 83 | B88: 207.5 | C88: 103.75 | D88: 4.819277108 | E88: 2 | F88: 9.638554217
A89: 84 | B89: 210 | C89: 105 | D89: 4.761904762 | E89: 2 | F89: 9.523809524
A90: 85 | B90: 212.5 | C90: 106.25 | D90: 4.705882353 | E90: 2 | F90: 9.411764706
A91: 86 | B91: 215 | C91: 107.5 | D91: 4.651162791 | E91: 2 | F91: 9.302325581
A92: 87 | B92: 217.5 | C92: 108.75 | D92: 4.597701149 | E92: 2 | F92: 9.195402299
A93: 88 | B93: 220 | C93: 110 | D93: 4.545454545 | E93: 2 | F93: 9.090909091
A94: 89 | B94: 222.5 | C94: 111.25 | D94: 4.494382022 | E94: 2 | F94: 8.988764045
A95: 90 | B95: 225 | C95: 112.5 | D95: 4.444444444 | E95: 2 | F95: 8.888888889
A96: 91 | B96: 227.5 | C96: 113.75 | D96: 4.395604396 | E96: 2 | F96: 8.791208791
A97: 92 | B97: 230 | C97: 115 | D97: 4.347826087 | E97: 2 | F97: 8.695652174
A98: 93 | B98: 232.5 | C98: 116.25 | D98: 4.301075269 | E98: 2 | F98: 8.602150538
A99: 94 | B99: 235 | C99: 117.5 | D99: 4.255319149 | E99: 2 | F99: 8.510638298
A100: 95 | B100: 237.5 | C100: 118.75 | D100: 4.210526316 | E100: 2 | F100: 8.421052632
A101: 96 | B101: 240 | C101: 120 | D101: 4.166666667 | E101: 2 | F101: 8.333333333
A102: 97 | B102: 242.5 | C102: 121.25 | D102: 4.12371134 | E102: 2 | F102: 8.24742268
A103: 98 | B103: 245 | C103: 122.5 | D103: 4.081632653 | E103: 2 | F103: 8.163265306
A104: 99 | B104: 247.5 | C104: 123.75 | D104: 4.04040404 | E104: 2 | F104: 8.080808081
A105: 100 | B105: 250 | C105: 125 | D105: 4 | E105: 2 | F105: 8
A106: 101 | B106: 252.5 | C106: 84.16666667 | D106: 3.96039604 | E106: 3 | F106: 11.88118812
A107: 102 | B107: 255 | C107: 85 | D107: 3.921568627 | E107: 3 | F107: 11.76470588
A108: 103 | B108: 257.5 | C108: 85.83333333 | D108: 3.883495146 | E108: 3 | F108: 11.65048544
A109: 104 | B109: 260 | C109: 86.66666667 | D109: 3.846153846 | E109: 3 | F109: 11.53846154
A110: 105 | B110: 262.5 | C110: 87.5 | D110: 3.80952381 | E110: 3 | F110: 11.42857143
A111: 106 | B111: 265 | C111: 88.33333333 | D111: 3.773584906 | E111: 3 | F111: 11.32075472
A112: 107 | B112: 267.5 | C112: 89.16666667 | D112: 3.738317757 | E112: 3 | F112: 11.21495327
A113: 108 | B113: 270 | C113: 90 | D113: 3.703703704 | E113: 3 | F113: 11.11111111
A114: 109 | B114: 272.5 | C114: 90.83333333 | D114: 3.669724771 | E114: 3 | F114: 11.00917431
A115: 110 | B115: 275 | C115: 91.66666667 | D115: 3.636363636 | E115: 3 | F115: 10.90909091
A116: 111 | B116: 277.5 | C116: 92.5 | D116: 3.603603604 | E116: 3 | F116: 10.81081081
A117: 112 | B117: 280 | C117: 93.33333333 | D117: 3.571428571 | E117: 3 | F117: 10.71428571
A118: 113 | B118: 282.5 | C118: 94.16666667 | D118: 3.539823009 | E118: 3 | F118: 10.61946903
A119: 114 | B119: 285 | C119: 95 | D119: 3.50877193 | E119: 3 | F119: 10.52631579
A120: 115 | B120: 287.5 | C120: 95.83333333 | D120: 3.47826087 | E120: 3 | F120: 10.43478261
A121: 116 | B121: 290 | C121: 96.66666667 | D121: 3.448275862 | E121: 3 | F121: 10.34482759
A122: 117 | B122: 292.5 | C122: 97.5 | D122: 3.418803419 | E122: 3 | F122: 10.25641026
A123: 118 | B123: 295 | C123: 98.33333333 | D123: 3.389830508 | E123: 3 | F123: 10.16949153
A124: 119 | B124: 297.5 | C124: 99.16666667 | D124: 3.361344538 | E124: 3 | F124: 10.08403361
A125: 120 | B125: 300 | C125: 100 | D125: 3.333333333 | E125: 3 | F125: 10
A126: 121 | B126: 302.5 | C126: 100.8333333 | D126: 3.305785124 | E126: 3 | F126: 9.917355372
A127: 122 | B127: 305 | C127: 101.6666667 | D127: 3.278688525 | E127: 3 | F127: 9.836065574
A128: 123 | B128: 307.5 | C128: 102.5 | D128: 3.25203252 | E128: 3 | F128: 9.756097561
A129: 124 | B129: 310 | C129: 103.3333333 | D129: 3.225806452 | E129: 3 | F129: 9.677419355
A130: 125 | B130: 312.5 | C130: 104.1666667 | D130: 3.2 | E130: 3 | F130: 9.6
A131: 126 | B131: 315 | C131: 105 | D131: 3.174603175 | E131: 3 | F131: 9.523809524
A132: 127 | B132: 317.5 | C132: 105.8333333 | D132: 3.149606299 | E132: 3 | F132: 9.448818898
A133: 128 | B133: 320 | C133: =IF(A133<37,B133*4/4,(IF(A133<64,B133*4/6,IF(A133<101,B133*2/4,IF(A133<128,B133*2/6,IF(A133<165,B133*1/4,IF(A133<215,B133*1/6,IF(A133<215,B133*1/6,IF(A133<265,B133*1/8,IF(A133<315,B133*1/10,B133*1/12)))))))))) -> 80 | D133: 3.125 | E133: 4 | F133: =1/C133*1000 -> 12.5
A134: 129 | B134: =IF(A134<64,(80*1*1000)+(5*1000/4)*(A134-0),(IF(A134<128,(80*2*1000)+(5*1000/2)*(A134-64),(80*4*1000)+(5*1000/1)*(A134-128))))/1000 -> 325 | C134: 81.25 | D134: =1000/B134 -> 3.076923077 | E134: =B134/C134 -> 4 | F134: 12.30769231
A135: 130 | B135: 330 | C135: 82.5 | D135: 3.03030303 | E135: 4 | F135: 12.12121212
A136: 131 | B136: 335 | C136: 83.75 | D136: 2.985074627 | E136: 4 | F136: 11.94029851
A137: 132 | B137: 340 | C137: 85 | D137: 2.941176471 | E137: 4 | F137: 11.76470588
A138: 133 | B138: 345 | C138: 86.25 | D138: 2.898550725 | E138: 4 | F138: 11.5942029
A139: 134 | B139: 350 | C139: 87.5 | D139: 2.857142857 | E139: 4 | F139: 11.42857143
A140: 135 | B140: 355 | C140: 88.75 | D140: 2.816901408 | E140: 4 | F140: 11.26760563
A141: 136 | B141: 360 | C141: 90 | D141: 2.777777778 | E141: 4 | F141: 11.11111111
A142: 137 | B142: 365 | C142: 91.25 | D142: 2.739726027 | E142: 4 | F142: 10.95890411
A143: 138 | B143: 370 | C143: 92.5 | D143: 2.702702703 | E143: 4 | F143: 10.81081081
A144: 139 | B144: 375 | C144: 93.75 | D144: 2.666666667 | E144: 4 | F144: 10.66666667
A145: 140 | B145: 380 | C145: 95 | D145: 2.631578947 | E145: 4 | F145: 10.52631579
A146: 141 | B146: 385 | C146: 96.25 | D146: 2.597402597 | E146: 4 | F146: 10.38961039
A147: 142 | B147: 390 | C147: 97.5 | D147: 2.564102564 | E147: 4 | F147: 10.25641026
A148: 143 | B148: 395 | C148: 98.75 | D148: 2.53164557 | E148: 4 | F148: 10.12658228
A149: 144 | B149: 400 | C149: 100 | D149: 2.5 | E149: 4 | F149: 10
A150: 145 | B150: 405 | C150: 101.25 | D150: 2.469135802 | E150: 4 | F150: 9.87654321
A151: 146 | B151: 410 | C151: 102.5 | D151: 2.43902439 | E151: 4 | F151: 9.756097561
A152: 147 | B152: 415 | C152: 103.75 | D152: 2.409638554 | E152: 4 | F152: 9.638554217
A153: 148 | B153: 420 | C153: 105 | D153: 2.380952381 | E153: 4 | F153: 9.523809524
A154: 149 | B154: 425 | C154: 106.25 | D154: 2.352941176 | E154: 4 | F154: 9.411764706
A155: 150 | B155: 430 | C155: 107.5 | D155: 2.325581395 | E155: 4 | F155: 9.302325581
A156: 151 | B156: 435 | C156: 108.75 | D156: 2.298850575 | E156: 4 | F156: 9.195402299
A157: 152 | B157: 440 | C157: 110 | D157: 2.272727273 | E157: 4 | F157: 9.090909091
A158: 153 | B158: 445 | C158: 111.25 | D158: 2.247191011 | E158: 4 | F158: 8.988764045
A159: 154 | B159: 450 | C159: 112.5 | D159: 2.222222222 | E159: 4 | F159: 8.888888889
A160: 155 | B160: 455 | C160: 113.75 | D160: 2.197802198 | E160: 4 | F160: 8.791208791
A161: 156 | B161: 460 | C161: 115 | D161: 2.173913043 | E161: 4 | F161: 8.695652174
A162: 157 | B162: 465 | C162: 116.25 | D162: 2.150537634 | E162: 4 | F162: 8.602150538
A163: 158 | B163: 470 | C163: 117.5 | D163: 2.127659574 | E163: 4 | F163: 8.510638298
A164: 159 | B164: 475 | C164: 118.75 | D164: 2.105263158 | E164: 4 | F164: 8.421052632
A165: 160 | B165: 480 | C165: 120 | D165: 2.083333333 | E165: 4 | F165: 8.333333333
A166: 161 | B166: 485 | C166: 121.25 | D166: 2.06185567 | E166: 4 | F166: 8.24742268
A167: 162 | B167: 490 | C167: 122.5 | D167: 2.040816327 | E167: 4 | F167: 8.163265306
A168: 163 | B168: 495 | C168: 123.75 | D168: 2.02020202 | E168: 4 | F168: 8.080808081
A169: 164 | B169: 500 | C169: 125 | D169: 2 | E169: 4 | F169: 8
A170: 165 | B170: 505 | C170: 84.16666667 | D170: 1.98019802 | E170: 6 | F170: 11.88118812
A171: 166 | B171: 510 | C171: 85 | D171: 1.960784314 | E171: 6 | F171: 11.76470588
A172: 167 | B172: 515 | C172: 85.83333333 | D172: 1.941747573 | E172: 6 | F172: 11.65048544
A173: 168 | B173: 520 | C173: 86.66666667 | D173: 1.923076923 | E173: 6 | F173: 11.53846154
A174: 169 | B174: 525 | C174: 87.5 | D174: 1.904761905 | E174: 6 | F174: 11.42857143
A175: 170 | B175: 530 | C175: 88.33333333 | D175: 1.886792453 | E175: 6 | F175: 11.32075472
A176: 171 | B176: 535 | C176: 89.16666667 | D176: 1.869158879 | E176: 6 | F176: 11.21495327
A177: 172 | B177: 540 | C177: 90 | D177: 1.851851852 | E177: 6 | F177: 11.11111111
A178: 173 | B178: 545 | C178: 90.83333333 | D178: 1.834862385 | E178: 6 | F178: 11.00917431
A179: 174 | B179: 550 | C179: 91.66666667 | D179: 1.818181818 | E179: 6 | F179: 10.90909091
A180: 175 | B180: 555 | C180: 92.5 | D180: 1.801801802 | E180: 6 | F180: 10.81081081
A181: 176 | B181: 560 | C181: 93.33333333 | D181: 1.785714286 | E181: 6 | F181: 10.71428571
A182: 177 | B182: 565 | C182: 94.16666667 | D182: 1.769911504 | E182: 6 | F182: 10.61946903
A183: 178 | B183: 570 | C183: 95 | D183: 1.754385965 | E183: 6 | F183: 10.52631579
A184: 179 | B184: 575 | C184: 95.83333333 | D184: 1.739130435 | E184: 6 | F184: 10.43478261
A185: 180 | B185: 580 | C185: 96.66666667 | D185: 1.724137931 | E185: 6 | F185: 10.34482759
A186: 181 | B186: 585 | C186: 97.5 | D186: 1.709401709 | E186: 6 | F186: 10.25641026
A187: 182 | B187: 590 | C187: 98.33333333 | D187: 1.694915254 | E187: 6 | F187: 10.16949153
A188: 183 | B188: 595 | C188: 99.16666667 | D188: 1.680672269 | E188: 6 | F188: 10.08403361
A189: 184 | B189: 600 | C189: 100 | D189: 1.666666667 | E189: 6 | F189: 10
A190: 185 | B190: 605 | C190: 100.8333333 | D190: 1.652892562 | E190: 6 | F190: 9.917355372
A191: 186 | B191: 610 | C191: 101.6666667 | D191: 1.639344262 | E191: 6 | F191: 9.836065574
A192: 187 | B192: 615 | C192: 102.5 | D192: 1.62601626 | E192: 6 | F192: 9.756097561
A193: 188 | B193: 620 | C193: 103.3333333 | D193: 1.612903226 | E193: 6 | F193: 9.677419355
A194: 189 | B194: 625 | C194: 104.1666667 | D194: 1.6 | E194: 6 | F194: 9.6
A195: 190 | B195: 630 | C195: 105 | D195: 1.587301587 | E195: 6 | F195: 9.523809524
A196: 191 | B196: 635 | C196: 105.8333333 | D196: 1.57480315 | E196: 6 | F196: 9.448818898
A197: 192 | B197: 640 | C197: =IF(A197<37,B197*4/4,(IF(A197<64,B197*4/6,IF(A197<101,B197*2/4,IF(A197<128,B197*2/6,IF(A197<165,B197*1/4,IF(A197<215,B197*1/6,IF(A197<215,B197*1/6,IF(A197<265,B197*1/8,IF(A197<315,B197*1/10,B197*1/12)))))))))) -> 106.6666667 | D197: 1.5625 | E197: 6 | F197: =1/C197*1000 -> 9.375
A198: 193 | B198: =IF(A198<64,(80*1*1000)+(5*1000/4)*(A198-0),(IF(A198<128,(80*2*1000)+(5*1000/2)*(A198-64),(80*4*1000)+(5*1000/1)*(A198-128))))/1000 -> 645 | C198: 107.5 | D198: =1000/B198 -> 1.550387597 | E198: =B198/C198 -> 6 | F198: 9.302325581
A199: 194 | B199: 650 | C199: 108.3333333 | D199: 1.538461538 | E199: 6 | F199: 9.230769231
A200: 195 | B200: 655 | C200: 109.1666667 | D200: 1.526717557 | E200: 6 | F200: 9.160305344
A201: 196 | B201: 660 | C201: 110 | D201: 1.515151515 | E201: 6 | F201: 9.090909091
A202: 197 | B202: 665 | C202: 110.8333333 | D202: 1.503759398 | E202: 6 | F202: 9.022556391
... 167 more rows

Sheet Data Type (hidden)
C1: Tx | G1: Rx
B2: Data Type | C2: Bits/pixel | D2: (Odd lines) | E2: Pixels/clock | F2: (Odd lines) | G2: Bits/pixel | H2: Pixels/clock | I2: Max HRES
B3: RAW10 | C3: 10 | E3: 6 | G3: 10 | H3: 4 | I3: 4608
B4: RAW12 | C4: 12 | E4: 5 | G4: 12 | H4: 4 | I4: 3840
B5: RAW14 | C5: 14 | E5: 4 | G5: 14 | H5: 4 | I5: 3288
B6: RAW6 | C6: 6 | E6: 10 | G6: 6 | H6: 8 | I6: 7680
B7: RAW7 | C7: 7 | E7: 8 | G7: 7 | H7: 8 | I7: 6576
B8: RAW8 | C8: 8 | E8: 8 | G8: 8 | H8: 8 | I8: 5760
B9: RGB444 | C9: 12 | E9: 4 | G9: 12 | H9: 4 | I9: 2880
B10: RGB555 | C10: 15 | E10: 4 | G10: 15 | H10: 4 | I10: 2880
B11: RGB565 | C11: 16 | E11: 4 | G11: 16 | H11: 4 | I11: 2880
B12: RGB666 | C12: 18 | E12: 3 | G12: 18 | H12: 3 | I12: 2556
B13: RGB888 | C13: 24 | E13: 2 | G13: 24 | H13: 2 | I13: 1920
B14: User Defined | C14: 8 | E14: 8 | G14: 8 | H14: 8 | I14: 5760
B15: YUV 420 10-bit | C15: 20 | D15: 10 | E15: 2 | F15: 6 | G15: 20 | H15: 2 | I15: 1920
B16: YUV 420 8-bit | C16: 16 | D16: 8 | E16: 4 | F16: 8 | G16: 16 | H16: 4 | I16: 1920
B17: YUV 420 8-bit (Legacy) | C17: 12 | E17: 4 | G17: 12 | H17: 4 | I17: 3840
B18: YUV 422 10-bit | C18: 20 | E18: 2 | G18: 20 | H18: 2 | I18: 2304
B19: YUV 422 8-bit | C19: 16 | E19: 4 | G19: 16 | H19: 4 | I19: 2880
B25: Clock Mode
B26: Continuous
B27: Non-continuous
B29: Frame Mode
B30: General
B31: Accurate
B33: Number of Lanes
B34: 1
B35: 2
B36: 4

Sheet W Dummy (hidden)
H2: Blanking Calculation
A8: Variable Parameters List | B8: Values | G8: Editable
A10: Byte clock in ns | B10: =(8/B15) -> 5.333333333 | C10: DPHY TX Byte Clock duration in nanoseconds
A11: Phy Delay in ns | B11: ='DYNAMIC HRES GEN'!H1 -> 1586 | C11: Duration between TxRequestHS high and TxReadyHS high
A12: Phy Stop state Delay in ns | B12: 0 | C12: Duration between TxRequestHS low and stopstate high
A13: No. of HS Packets | B13: 1 | C13: Number of HS packets to be transmitted between hsync. 4-> one LS packet, one LE packet, and one image long packet Note: Set 1 for GENERIC mode with. set 3 for ACCURATE mode
A14: No. of Short Pkt Bytes | B14: =(B13*4)/B17 -> 1 | C14: No of byte clocks required to send the short packets.
A15: PHY Speed in Gbps | B15: =('MIPI TX'!C12)/1000 -> 1.5 | C15: PHY speed in GBPS
A16: Camera datarate in Gbps | B16: =('MIPI TX'!C12)/1000 -> 1.5 | C16: Datarate at camera interafce in GBPS
A17: No. of Lane's | B17: 4 | C17: Number of lanes
A18: Pixel count (Haddr) | B18: ='MIPI TX'!C4 -> 1920 | C18: No of pixel per line.
A20: Datatype | B20: No. of Bits per clock | C20: Number of Pixels | D20: Pixel clock in ns | E20: No. of Bytes | F20: No. of Bytes +2 (CRC) | G20: No. of Bytes | H20: PPI line time in ns | I20: PPI line time in ns with overhead time | J20: Total Line Pixel clock | K20: Total Blanking | L20: Total Blanking | M20: HBP in pixel clock | N20: HFP in pixel clock | O20: HSYNC in pixel clock
A21: Raw6 | B21: 60 | C21: 10 | D21: =(B21/B$16)*(1/B$17) -> 10 | E21: =(B18*3)/4 -> 1440 | F21: =E21+2 -> 1442 | G21: =ROUNDUP((F21/B$17),0) -> 361 | H21: =(B$10*G21)+(B$10*B$14)+(B$11*B$13)+(B$12*B$13) -> 3516.666667 | I21: =(H21*130)/100 -> 4571.666667 | J21: =ROUND((I21/D21),0) -> 457 | K21: =J21-(B$18/10) -> 265 | L21: =IF(K21<100,100,K21) -> 265 | M21: =ROUNDUP((L21/10*6),0) -> 159 | N21: =ROUNDUP(((L21/10*3)),0) -> 80 | O21: =ROUNDUP(((L21/10)),0) -> 27
A22: Raw7 | B22: 56 | C22: 8 | D22: 9.333333333 | E22: =(B18*7)/8 -> 1680 | F22: 1682 | G22: 421 | H22: 3836.666667 | I22: =(H22*130)/100 -> 4987.666667 | J22: =ROUND((I22/D22),0) -> 534 | K22: =J22-(B$18/8) -> 294 | L22: =IF(K22<100,100,K22) -> 294 | M22: =ROUNDUP((L22/10*6),0) -> 177 | N22: =ROUNDUP(((L22/10*3)),0) -> 89 | O22: =ROUNDUP(((L22/10)),0) -> 30
A23: Raw8 | B23: 64 | C23: 8 | D23: =(B23/B$16)*(1/B$17) -> 10.66666667 | E23: =B18 -> 1920 | F23: =E23+2 -> 1922 | G23: =ROUNDUP((F23/B$17),0) -> 481 | H23: =(B$10*G23)+(B$10*B$14)+(B$11*B$13)+(B$12*B$13) -> 4156.666667 | I23: =(H23*132)/100 -> 5486.8 | J23: 514 | K23: =J23-(B$18/8) -> 274 | L23: 274 | M23: 165 | N23: 83 | O23: 28
A24: Raw10 | B24: 60 | C24: 6 | D24: =(B24/B16)*(1/B17) -> 10 | E24: =B18/4 *5 -> 2400 | F24: =E24+2 -> 2402 | G24: =ROUNDUP((F24/B17),0) -> 601 | H24: =(B$10*G24)+(B$10*B$14)+(B$11*B$13)+(B$12*B$13) -> 4796.666667 | I24: 6235.666667 | J24: 624 | K24: =J24-(B18/6) -> 304 | L24: 304 | M24: 183 | N24: 92 | O24: 31
A25: Raw12 | B25: 60 | C25: 5 | D25: =(B25/B16)*(1/B17) -> 10 | E25: =B18/2 *3 -> 2880 | F25: 2882 | G25: =ROUNDUP((F25/B17),0) -> 721 | H25: =(B10*G25)+(B10*B14)+(B11*B13)+(B12*B13) -> 5436.666667 | I25: 7067.666667 | J25: 707 | K25: =J25-(B18/5) -> 323 | L25: 323 | M25: 194 | N25: 97 | O25: 33
A26: Raw14 | B26: 56 | C26: 4 | D26: =(B26/B16)*(1/B17) -> 9.333333333 | E26: =B18/4 *7 -> 3360 | F26: 3362 | G26: =ROUNDUP((F26/B17),0) -> 841 | H26: =(B10*G26)+(B10*B14)+(B11*B13)+(B12*B13) -> 6076.666667 | I26: 7899.666667 | J26: 846 | K26: =J26-(B18/4) -> 366 | L26: 366 | M26: 220 | N26: 110 | O26: 37
A27: User Defined | B27: 64 | C27: 8 | D27: =(B27/B16)*(1/B17) -> 10.66666667 | E27: =B$18 -> 1920 | F27: 1922 | G27: =ROUNDUP((F27/B17),0) -> 481 | H27: =(B10*G27)+(B10*B14)+(B11*B13)+(B12*B13) -> 4156.666667 | I27: 5403.666667 | J27: 507 | K27: =J27-(B$18/8) -> 267 | L27: 267 | M27: 161 | N27: 81 | O27: 27
A28: User_Def 2 - 10-7-10 | B28: 64 | C28: 8 | D28: =(B28/B16)*(1/B17) -> 10.66666667 | E28: =B$18 -> 1920 | F28: 1922 | G28: =ROUNDUP((F28/B17),0) -> 481 | H28: =(B10*G28)+(B10*B14)+(B11*B13)+(B12*B13) -> 4156.666667 | I28: 5403.666667 | J28: 507 | K28: =J28-(B$18/8) -> 267 | L28: 267 | M28: 161 | N28: 81 | O28: 27
A29: User_Def 3 - 10-8-10 | B29: 64 | C29: 8 | D29: =(B29/B16)*(1/B17) -> 10.66666667 | E29: 1920 | F29: 1922 | G29: =ROUNDUP((F29/B17),0) -> 481 | H29: =(B10*G29)+(B10*B14)+(B11*B13)+(B12*B13) -> 4156.666667 | I29: 5403.666667 | J29: 507 | K29: 267 | L29: 267 | M29: 161 | N29: 81 | O29: 27
A30: User_Def 4 - 12-6-12 | B30: 64 | C30: 8 | D30: =(B30/B16)*(1/B17) -> 10.66666667 | E30: 1920 | F30: 1922 | G30: =ROUNDUP((F30/B17),0) -> 481 | H30: =(B10*G30)+(B10*B14)+(B11*B13)+(B12*B13) -> 4156.666667 | I30: 5403.666667 | J30: 507 | K30: 267 | L30: 267 | M30: 161 | N30: 81 | O30: 27
A31: User_Def 5 - 12-7-12 | B31: 64 | C31: 8 | D31: =(B31/B16)*(1/B17) -> 10.66666667 | E31: 1920 | F31: 1922 | G31: =ROUNDUP((F31/B17),0) -> 481 | H31: =(B10*G31)+(B10*B14)+(B11*B13)+(B12*B13) -> 4156.666667 | I31: 5403.666667 | J31: 507 | K31: 267 | L31: 267 | M31: 161 | N31: 81 | O31: 27
A32: User_Def 6 - 12-8-12 | B32: 64 | C32: 8 | D32: =(B32/B16)*(1/B17) -> 10.66666667 | E32: 1920 | F32: 1922 | G32: =ROUNDUP((F32/B17),0) -> 481 | H32: =(B10*G32)+(B10*B14)+(B11*B13)+(B12*B13) -> 4156.666667 | I32: 5403.666667 | J32: 507 | K32: 267 | L32: 267 | M32: 161 | N32: 81 | O32: 27
A33: User_Def 7 - 12-10-12 | B33: 64 | C33: 8 | D33: =(B33/B16)*(1/B17) -> 10.66666667 | E33: 1920 | F33: 1922 | G33: =ROUNDUP((F33/B17),0) -> 481 | H33: =(B10*G33)+(B10*B14)+(B11*B13)+(B12*B13) -> 4156.666667 | I33: 5403.666667 | J33: 507 | K33: 267 | L33: 267 | M33: 161 | N33: 81 | O33: 27
A34: User_Def 8 | B34: 64 | C34: 8 | D34: =(B34/B$16)*(1/B$17) -> 10.66666667 | E34: 1920 | F34: 1922 | G34: =ROUNDUP((F34/B$17),0) -> 481 | H34: =(B$10*G34)+(B$10*B$14)+(B$11*B$13)+(B$12*B$13) -> 4156.666667 | I34: 5403.666667 | J34: 507 | K34: =J34-(B$18/C34) -> 267 | L34: 267 | M34: 161 | N34: 81 | O34: 27
A35: RGB444 | B35: 48 | C35: 4 | D35: =(B35/B$16)*(1/B$17) -> 8 | E35: =B$18*2 -> 3840 | F35: 3842 | G35: =ROUNDUP((F35/B$17),0) -> 961 | H35: =(B$10*G35)+(B$10*B$14)+(B$11*B$13)+(B$12*B$13) -> 6716.666667 | I35: 8731.666667 | J35: 1091 | K35: =J35-(B$18/C35) -> 611 | L35: 611 | M35: 367 | N35: 184 | O35: 62
A36: RGB555 | B36: 60 | C36: 4 | D36: 10 | E36: 3840 | F36: 3842 | G36: 961 | H36: 6716.666667 | I36: 8731.666667 | J36: 873 | K36: 393 | L36: 393 | M36: 236 | N36: 118 | O36: 40
A37: RGB565 | B37: 64 | C37: 4 | D37: 10.66666667 | E37: 3840 | F37: 3842 | G37: 961 | H37: 6716.666667 | I37: 8731.666667 | J37: 819 | K37: 339 | L37: 339 | M37: 204 | N37: 102 | O37: 34
A38: RGB666 | B38: 54 | C38: 3 | D38: 9 | E38: =(B$18*9)/4 -> 4320 | F38: 4322 | G38: 1081 | H38: 7356.666667 | I38: 9563.666667 | J38: 1063 | K38: 423 | L38: 423 | M38: 254 | N38: 127 | O38: 43
A39: YUV 420 8-bit (Legacy) | B39: 48 | C39: 4 | D39: 8 | E39: =(B18/2)*3 -> 2880 | F39: 2882 | G39: 721 | H39: 5436.666667 | I39: 7067.666667 | J39: 883 | K39: 403 | L39: 403 | M39: 242 | N39: 121 | O39: 41
A40: YUV 422 8-bit | B40: 64 | C40: 4 | D40: 10.66666667 | E40: =B$18*2 -> 3840 | F40: 3842 | G40: 961 | H40: 6716.666667 | I40: 8731.666667 | J40: 819 | K40: 339 | L40: 339 | M40: 204 | N40: 102 | O40: 34
A41: YUV 422 10-bit | B41: 40 | C41: 2 | D41: =(B41/B$16)*(1/B$17) -> 6.666666667 | E41: =B$18*10/4 -> 4800 | F41: =E41+2 -> 4802 | G41: =ROUNDUP((F41/B$17),0) -> 1201 | H41: =(B$10*G41)+(B$10*B$14)+(B$11*B$13)+(B$12*B$13) -> 7996.666667 | I41: =(H41*140)/100 -> 11195.33333 | J41: =ROUND((I41/D41),0) -> 1679 | K41: =J41-(B$18/C41) -> 719 | L41: =IF(K41<100,100,K41) -> 719 | M41: 432 | N41: 216 | O41: 72
A42: RGB888 | B42: 48 | C42: 2 | D42: =(B42/B$16)*(1/B$17) -> 8 | E42: =B$18*3 -> 5760 | F42: =E42+2 -> 5762 | G42: =ROUNDUP((F42/B$17),0) -> 1441 | H42: =(B$10*G42)+(B$10*B$14)+(B$11*B$13)+(B$12*B$13) -> 9276.666667 | I42: =(H42*140)/100 -> 12987.33333 | J42: =ROUND((I42/D42),0) -> 1623 | K42: =J42-(B$18/C42) -> 663 | L42: =IF(K42<100,100,K42) -> 663 | M42: 398 | N42: 199 | O42: 67
A43: YUV 420 8-bit | B43: 64 | C43: 4 | D43: =(B43/B$16)*(1/B$17) -> 10.66666667 | E43: =B$18*2 -> 3840 | F43: =E43+2 -> 3842 | G43: =ROUNDUP((F43/B$17),0) -> 961 | H43: =(B$10*G43)+(B$10*B$14)+(B$11*B$13)+(B$12*B$13) -> 6716.666667 | I43: =(H43*160)/100 -> 10746.66667 | J43: =ROUND((I43/D43),0) -> 1008 | K43: =J43-(B$18/C43) -> 528 | L43: =IF(K43<100,100,K43) -> 528 | M43: 317 | N43: 159 | O43: 53
A44: YUV 420 10-bit | B44: 40 | C44: 2 | D44: 6.666666667 | E44: =B$18/4*10 -> 4800 | F44: 4802 | G44: 1201 | H44: 7996.666667 | I44: =(H44*160)/100 -> 12794.66667 | J44: 1919 | K44: 959 | L44: 959 | M44: 576 | N44: 288 | O44: 96
A48: Datatype | B48: No. of Bits per clock | C48: Number of Pixels | D48: Pixel clock in ns | E48: No. of Bytes | F48: No. of Bytes +2 (CRC) | G48: No. of Bytes | H48: PPI line time in ns | I48: PPI line time in ns with overhead time | J48: Total Line Pixel clock | K48: Total Blanking | L48: Total Blanking | M48: HBP in pixel clock | N48: HFP in pixel clock | O48: HSYNC in pixel clock
A49: ='MIPI TX'!C3 -> RAW10 | B49: =VLOOKUP($A$49,$A$21:$O$44,2,FALSE) -> 60 | C49: =VLOOKUP($A$49,$A$21:$O$44,3,FALSE) -> 6 | D49: =1/'MIPI TX'!C9*1000 -> 10 | E49: =VLOOKUP($A$49,$A$21:$O$44,5,FALSE) -> 2400 | F49: =VLOOKUP($A$49,$A$21:$O$44,6,FALSE) -> 2402 | G49: =VLOOKUP($A$49,$A$21:$O$44,7,FALSE) -> 601 | H49: =VLOOKUP($A$49,$A$21:$O$44,8,FALSE) -> 4796.666667 | I49: =VLOOKUP($A$49,$A$21:$O$44,9,FALSE) -> 6235.666667 | J49: =ROUND((I49/D49),0) -> 624 | K49: =J49-(B$18/8) -> 384 | L49: =IF(K49<100,100,K49) -> 384 | M49: =ROUNDUP((L49/10*6),0) -> 231 | N49: =ROUNDUP(((L49/10*3)),0) -> 116 | O49: =ROUNDUP(((L49/10)),0) -> 39

Sheet Revision History
A1: Date | B1: Version | C1: Description
A2: 2020-05-21 | B2: 1.0 | C2: Initial release.
A3: 2020-06-09 | B3: 1.1 | C3: Added MIPI RX
A4: 2020-12-10 | B4: 1.2 | C4: Added reference waveform for dynamic HRES
A5: 2021-12-08 | B5: 1.3 | C5: Data Type formula for RAW10 correction.
A6: 2023-07-03 | B6: 1.4 | C6: Fixed Dynamic Hres Gen tools forever loop.
